[Event "Kvibergspelen 2022"]
[Site "Kviberg Park Hotel & Conference, Krutvagen 2, Gothenburg, Sweden"]
[Date "2022.10.01"]
[Round "5.13"]
[White "Kashwan, Hassan"]
[Black "Bohman Karlholm, Adrian"]
[Result "0-1"]
[TimeControl "15 minutes + 5 seconds per move from move one (Round 1 - 4) / 90 minutes + 30 seconds per move from move one (Round 5 - 8)"]
[WhiteFideId "137122555"]
[BlackFideId "1720643"]
[WhiteElo "1902"]
[BlackElo "2117"]

1. d4 {[%clk 01:08:51]} {[%emt 00:22:08]} Nf6 {[%clk 01:30:45]} {[%emt
00:00:15]} 2. c4 {[%clk 01:07:56]} {[%emt 00:01:26]} e6 {[%clk 01:31:06]}
{[%emt 00:00:09]} 3. Nf3 {[%clk 01:08:01]} {[%emt 00:00:25]} d5 {[%clk
01:31:15]} {[%emt 00:00:20]} 4. Nc3 {[%clk 01:08:10]} {[%emt 00:00:22]} c5
{[%clk 01:31:20]} {[%emt 00:00:24]} 5. cxd5 {[%clk 01:07:48]} {[%emt 00:00:53]}
exd5 {[%clk 01:31:39]} {[%emt 00:00:11]} 6. Bg5 {[%clk 01:07:37]} {[%emt
00:00:41]} Be7 {[%clk 01:24:31]} {[%emt 00:07:38]} 7. dxc5 {[%clk 01:04:36]}
{[%emt 00:03:31]} O-O {[%clk 01:18:03]} {[%emt 00:06:57]} 8. e3 {[%clk
01:04:01]} {[%emt 00:01:05]} Be6 {[%clk 01:11:29]} {[%emt 00:07:04]} 9. Rc1
{[%clk 01:00:39]} {[%emt 00:03:53]} Qa5 {[%clk 01:06:13]} {[%emt 00:05:46]} 10.
Bd3 {[%clk 00:57:27]} {[%emt 00:03:41]} Nbd7 {[%clk 01:00:25]} {[%emt
00:06:19]} 11. O-O {[%clk 00:55:14]} {[%emt 00:02:43]} Nxc5 {[%clk 00:57:07]}
{[%emt 00:03:47]} 12. Bb1 {[%clk 00:54:03]} {[%emt 00:01:42]} Rfd8 {[%clk
00:54:00]} {[%emt 00:03:36]} 13. Qc2 {[%clk 00:53:40]} {[%emt 00:00:53]} g6
{[%clk 00:53:44]} {[%emt 00:00:46]} 14. Nd4 {[%clk 00:53:05]} {[%emt 00:01:06]}
Rac8 {[%clk 00:52:38]} {[%emt 00:01:36]} 15. a3 {[%clk 00:51:43]} {[%emt
00:01:52]} Nce4 {[%clk 00:48:55]} {[%emt 00:04:12]} 16. Nxe6 {[%clk 00:51:30]}
{[%emt 00:00:43]} fxe6 {[%clk 00:49:00]} {[%emt 00:00:25]} 17. Bh4 {[%clk
00:44:22]} {[%emt 00:07:38]} Nxc3 {[%clk 00:46:43]} {[%emt 00:02:47]} 18. bxc3
{[%clk 00:44:05]} {[%emt 00:00:48]} Qxa3 {[%clk 00:46:19]} {[%emt 00:00:54]} 19.
Rfd1 {[%clk 00:42:18]} {[%emt 00:02:16]} Ne4 {[%clk 00:40:24]} {[%emt
00:06:25]} 20. Bxe7 {[%clk 00:42:25]} {[%emt 00:00:24]} Qxe7 {[%clk 00:40:45]}
{[%emt 00:00:09]} 21. Qb3 {[%clk 00:42:19]} {[%emt 00:00:34]} Rc4 {[%clk
00:36:10]} {[%emt 00:05:06]} 22. Bd3 {[%clk 00:39:11]} {[%emt 00:03:37]} Nc5
{[%clk 00:36:02]} {[%emt 00:00:39]} 23. Qa3 {[%clk 00:36:35]} {[%emt 00:03:07]}
Ra4 {[%clk 00:36:12]} {[%emt 00:00:19]} 24. Qb2 {[%clk 00:36:46]} {[%emt
00:00:17]} Nxd3 {[%clk 00:36:28]} {[%emt 00:00:15]} 25. Rxd3 {[%clk 00:37:11]}
{[%emt 00:00:06]} Rc8 {[%clk 00:35:33]} {[%emt 00:01:25]} 26. Qb5 {[%clk
00:36:29]} {[%emt 00:01:09]} Rac4 {[%clk 00:34:44]} {[%emt 00:01:22]} 27. g3
{[%clk 00:32:54]} {[%emt 00:04:05]} R8c5 {[%clk 00:33:24]} {[%emt 00:01:50]} 28.
Qb2 {[%clk 00:32:42]} {[%emt 00:00:42]} Qc7 {[%clk 00:33:24]} {[%emt 00:00:29]}
29. h4 {[%clk 00:32:53]} {[%emt 00:00:19]} b5 {[%clk 00:32:44]} {[%emt
00:01:10]} 30. h5 {[%clk 00:32:43]} {[%emt 00:00:40]} b4 {[%clk 00:32:15]}
{[%emt 00:01:00]} 31. hxg6 {[%clk 00:32:47]} {[%emt 00:00:26]} hxg6 {[%clk
00:32:22]} {[%emt 00:00:22]} 32. Qb1 {[%clk 00:28:46]} {[%emt 00:04:32]} Kg7
{[%clk 00:29:33]} {[%emt 00:03:18]} 33. Rcd1 {[%clk 00:23:52]} {[%emt
00:05:24]} bxc3 {[%clk 00:29:18]} {[%emt 00:00:46]} 34. Qc2 {[%clk 00:23:42]}
{[%emt 00:00:40]} Rb5 {[%clk 00:27:26]} {[%emt 00:02:22]} 35. Rc1 {[%clk
00:21:42]} {[%emt 00:02:29]} Rb2 {[%clk 00:26:32]} {[%emt 00:01:25]} 36. Qd1
{[%clk 00:22:09]} {[%emt 00:00:04]} c2 {[%clk 00:24:59]} {[%emt 00:02:02]} 37.
Qd2 {[%clk 00:19:25]} {[%emt 00:03:14]} Rb1 {[%clk 00:24:50]} {[%emt 00:00:40]}
38. Kg2 {[%clk 00:19:38]} {[%emt 00:00:16]} Rxc1 {[%clk 00:25:06]} {[%emt
00:00:14]} 39. Qxc1 {[%clk 00:20:07]} Qb7 {[%clk 00:25:00]} {[%emt 00:00:37]}
40. Ra3 {[%clk 00:19:32]} {[%emt 00:01:05]} a6 {[%clk 00:21:13]} {[%emt
00:04:17]} 41. Ra1 {[%clk 00:18:16]} {[%emt 00:01:47]} d4+ {[%clk 00:21:13]}
{[%emt 00:00:29]} 42. f3 {[%clk 00:16:56]} {[%emt 00:01:49]} Rc3 {[%clk
00:20:06]} {[%emt 00:01:36]} 43. Qd2 {[%clk 00:16:37]} {[%emt 00:00:47]} e5
{[%clk 00:19:50]} {[%emt 00:00:49]} 44. e4 {[%clk 00:15:19]} {[%emt 00:01:48]}
Qf7 {[%clk 00:17:34]} {[%emt 00:02:46]} 45. f4 {[%clk 00:14:53]} {[%emt
00:00:57]} Qb7 {[%clk 00:17:33]} {[%emt 00:00:30]} 46. Re1 {[%clk 00:13:52]}
{[%emt 00:01:30]} Qb1 {[%clk 00:16:51]} {[%emt 00:01:13]} 47. Rc1 {[%clk
00:13:34]} {[%emt 00:00:44]} Qb3 {[%clk 00:15:18]} {[%emt 00:02:08]} 48. Qf2
{[%clk 00:13:07]} {[%emt 00:00:56]} Rxg3+ {[%clk 00:15:16]} {[%emt 00:00:32]}
49. Kh2 {[%clk 00:11:53]} {[%emt 00:01:42]} Rh3+ {[%clk 00:15:10]} {[%emt
00:00:37]} 50. Kg2 {[%clk 00:11:46]} {[%emt 00:00:37]} Qg3+ {[%clk 00:15:18]}
{[%emt 00:00:22]} 51. Qxg3 {[%clk 00:12:13]} {[%emt 00:00:04]} Rxg3+ {[%clk
00:15:39]} {[%emt 00:00:08]} 52. Kf2 {[%clk 00:08:12]} {[%emt 00:04:31]} Rc3
{[%clk 00:14:37]} {[%emt 00:01:32]} 53. fxe5 {[%clk 00:07:48]} {[%emt
00:00:55]} Kf7 {[%clk 00:14:54]} {[%emt 00:00:12]} 54. Ke2 {[%clk 00:07:47]}
{[%emt 00:00:32]} Ke6 {[%clk 00:15:13]} {[%emt 00:00:11]} 55. Kd2 {[%clk
00:07:31]} {[%emt 00:00:46]} Kxe5 {[%clk 00:15:33]} {[%emt 00:00:10]} 56. Ke2
{[%clk 00:06:40]} {[%emt 00:01:21]} a5 {[%clk 00:15:51]} {[%emt 00:00:12]} 57.
Kd2 {[%clk 00:06:48]} {[%emt 00:00:22]} a4 {[%clk 00:16:12]} {[%emt 00:00:08]}
58. Ke2 {[%clk 00:06:23]} {[%emt 00:00:56]} a3 {[%clk 00:16:34]} {[%emt
00:00:08]} 0-1

[Event "Kvibergspelen 2022"]
[Site "Kviberg Park Hotel & Conference, Krutvagen 2, Gothenburg, Sweden"]
[Date "2022.10.01"]
[Round "5.14"]
[White "Hauksson, Hordur Aron"]
[Black "Borvander, Tom"]
[Result "1-0"]
[TimeControl "15 minutes + 5 seconds per move from move one (Round 1 - 4) / 90 minutes + 30 seconds per move from move one (Round 5 - 8)"]
[WhiteFideId "2303680"]
[BlackFideId "1707388"]
[WhiteElo "1882"]
[BlackElo "2098"]

1. d4 {[%clk 01:29:51]} {[%emt 00:01:08]} Nf6 {[%clk 01:30:47]} {[%emt
00:00:14]} 2. c4 {[%clk 01:30:02]} {[%emt 00:00:20]} g6 {[%clk 01:31:08]}
{[%emt 00:00:10]} 3. Nc3 {[%clk 01:30:24]} {[%emt 00:00:07]} Bg7 {[%clk
01:31:26]} {[%emt 00:00:11]} 4. e4 {[%clk 01:30:48]} {[%emt 00:00:06]} d6
{[%clk 01:31:48]} {[%emt 00:00:08]} 5. f3 {[%clk 01:31:12]} {[%emt 00:00:06]}
O-O {[%clk 01:32:00]} {[%emt 00:00:19]} 6. Nge2 {[%clk 01:31:26]} {[%emt
00:00:15]} c5 {[%clk 01:31:53]} {[%emt 00:00:37]} 7. d5 {[%clk 01:30:52]}
{[%emt 00:01:03]} e6 {[%clk 01:31:41]} {[%emt 00:00:43]} 8. Ng3 {[%clk
01:30:19]} {[%emt 00:01:03]} exd5 {[%clk 01:32:00]} {[%emt 00:00:11]} 9. cxd5
{[%clk 01:30:41]} {[%emt 00:00:08]} Nh5 {[%clk 01:31:10]} {[%emt 00:01:20]} 10.
Nxh5 {[%clk 01:25:49]} {[%emt 00:05:22]} gxh5 {[%clk 01:31:34]} {[%emt
00:00:06]} 11. Be3 {[%clk 01:09:55]} {[%emt 00:16:24]} f5 {[%clk 01:30:50]}
{[%emt 00:01:14]} 12. Qd2 {[%clk 01:08:36]} {[%emt 00:01:50]} Qf6 {[%clk
01:27:49]} {[%emt 00:03:31]} 13. O-O-O {[%clk 00:51:11]} {[%emt 00:17:55]} f4
{[%clk 01:27:25]} {[%emt 00:00:54]} 14. Bf2 {[%clk 00:51:36]} {[%emt 00:00:05]}
a6 {[%clk 01:27:43]} {[%emt 00:00:12]} 15. Be2 {[%clk 00:44:02]} {[%emt
00:08:04]} Nd7 {[%clk 01:27:47]} {[%emt 00:00:25]} 16. g3 {[%clk 00:36:44]}
{[%emt 00:07:49]} Bh6 {[%clk 01:27:41]} {[%emt 00:00:36]} 17. Rdg1 {[%clk
00:31:35]} {[%emt 00:05:39]} Kh8 {[%clk 01:27:51]} {[%emt 00:00:20]} 18. Kb1
{[%clk 00:17:54]} {[%emt 00:14:11]} Ne5 {[%clk 01:27:49]} {[%emt 00:00:31]} 19.
gxf4 {[%clk 00:16:03]} {[%emt 00:02:22]} Bxf4 {[%clk 01:27:05]} {[%emt
00:01:14]} 20. Be3 {[%clk 00:16:05]} {[%emt 00:00:28]} Ng6 {[%clk 01:25:15]}
{[%emt 00:02:19]} 21. Bxf4 {[%clk 00:15:55]} {[%emt 00:00:41]} Nxf4 {[%clk
01:25:21]} {[%emt 00:00:23]} 22. Bd1 {[%clk 00:15:27]} {[%emt 00:00:58]} Bh3
{[%clk 01:14:08]} {[%emt 00:11:43]} 23. Ne2 {[%clk 00:14:12]} {[%emt 00:01:45]}
h4 {[%clk 01:08:15]} {[%emt 00:06:24]} 24. Nxf4 {[%clk 00:12:26]} {[%emt
00:02:16]} Qxf4 {[%clk 01:08:35]} {[%emt 00:00:09]} 25. Qxf4 {[%clk 00:12:25]}
{[%emt 00:00:32]} Rxf4 {[%clk 01:08:57]} {[%emt 00:00:07]} 26. Rg5 {[%clk
00:12:29]} {[%emt 00:00:26]} Rg8 {[%clk 01:05:54]} {[%emt 00:03:33]} 27. Rhg1
{[%clk 00:12:40]} {[%emt 00:00:19]} Rxg5 {[%clk 01:06:16]} {[%emt 00:00:09]} 28.
Rxg5 {[%clk 00:13:03]} {[%emt 00:00:06]} b5 {[%clk 01:06:26]} {[%emt 00:00:20]}
29. Kc1 {[%clk 00:13:10]} {[%emt 00:00:24]} Rf6 {[%clk 01:04:37]} {[%emt
00:02:19]} 30. Rh5 {[%clk 00:08:28]} {[%emt 00:05:12]} Bg2 {[%clk 01:02:26]}
{[%emt 00:02:40]} 31. Rxh4 {[%clk 00:08:52]} {[%emt 00:00:07]} Rg6 {[%clk
01:01:15]} {[%emt 00:01:41]} 32. Be2 {[%clk 00:07:57]} {[%emt 00:01:25]} Kg7
{[%clk 01:01:22]} {[%emt 00:00:23]} 33. Kd2 {[%clk 00:08:17]} {[%emt 00:00:10]}
h6 {[%clk 01:00:25]} {[%emt 00:01:27]} 34. Ke3 {[%clk 00:08:29]} {[%emt
00:00:18]} Bh1 {[%clk 01:00:22]} {[%emt 00:00:33]} 35. Rh3 {[%clk 00:07:08]}
{[%emt 00:01:52]} Bg2 {[%clk 00:57:55]} {[%emt 00:02:56]} 36. Rg3 {[%clk
00:07:24]} {[%emt 00:00:14]} Rxg3 {[%clk 00:57:52]} {[%emt 00:00:34]} 37. hxg3
{[%clk 00:07:52]} {[%emt 00:00:02]} Bh3 {[%clk 00:58:03]} {[%emt 00:00:19]} 38.
g4 {[%clk 00:07:13]} {[%emt 00:01:09]} Kg6 {[%clk 00:58:10]} {[%emt 00:00:23]}
39. Kf4 {[%clk 00:04:13]} {[%emt 00:03:29]} h5 {[%clk 00:58:18]} {[%emt
00:00:21]} 40. Kg3 {[%emt 00:00:30]} 1-0

[Event "Kvibergspelen 2022"]
[Site "Kviberg Park Hotel & Conference, Krutvagen 2, Gothenburg, Sweden"]
[Date "2022.10.01"]
[Round "5.15"]
[White "Briem, Stephan"]
[Black "Nilsson, Oliver"]
[Result "1-0"]
[TimeControl "15 minutes + 5 seconds per move from move one (Round 1 - 4) / 90 minutes + 30 seconds per move from move one (Round 5 - 8)"]
[WhiteFideId "2312506"]
[BlackFideId "1730177"]
[WhiteElo "2083"]
[BlackElo "1909"]

1. d4 {[%clk 01:30:54]} {[%emt 00:00:06]} d5 {[%clk 01:30:55]} {[%emt
00:00:05]} 2. c4 {[%clk 01:29:45]} {[%emt 00:01:39]} e6 {[%clk 01:31:18]}
{[%emt 00:00:08]} 3. Nf3 {[%clk 01:28:16]} {[%emt 00:01:59]} a6 {[%clk
01:31:42]} {[%emt 00:00:06]} 4. e3 {[%clk 01:27:21]} {[%emt 00:01:25]} Nf6
{[%clk 01:31:49]} {[%emt 00:00:23]} 5. a3 {[%clk 01:27:20]} {[%emt 00:00:31]}
Nbd7 {[%clk 01:30:33]} {[%emt 00:01:46]} 6. Nbd2 {[%clk 01:17:54]} {[%emt
00:09:54]} b6 {[%clk 01:21:37]} {[%emt 00:09:27]} 7. b4 {[%clk 01:11:36]}
{[%emt 00:06:48]} a5 {[%clk 01:15:42]} {[%emt 00:06:25]} 8. b5 {[%clk
01:11:39]} {[%emt 00:00:28]} Bb7 {[%clk 01:15:18]} {[%emt 00:00:53]} 9. Bb2
{[%clk 01:05:25]} {[%emt 00:06:44]} Bd6 {[%clk 01:09:48]} {[%emt 00:06:01]} 10.
Ne5 {[%clk 00:53:55]} {[%emt 00:11:59]} O-O {[%clk 01:08:23]} {[%emt 00:01:56]}
11. Qc2 {[%clk 00:50:09]} {[%emt 00:04:16]} Re8 {[%clk 01:04:46]} {[%emt
00:04:07]} 12. Nc6 {[%clk 00:44:09]} {[%emt 00:06:31]} Bxc6 {[%clk 00:54:08]}
{[%emt 00:11:08]} 13. bxc6 {[%clk 00:44:36]} {[%emt 00:00:02]} Nf8 {[%clk
00:53:50]} {[%emt 00:00:48]} 14. Be2 {[%clk 00:37:19]} {[%emt 00:07:47]} e5
{[%clk 00:51:01]} {[%emt 00:03:19]} 15. c5 {[%clk 00:28:26]} {[%emt 00:09:24]}
exd4 {[%clk 00:50:32]} {[%emt 00:00:59]} 16. cxd6 {[%clk 00:27:23]} {[%emt
00:01:33]} dxe3 {[%clk 00:50:10]} {[%emt 00:00:52]} 17. fxe3 {[%clk 00:26:44]}
{[%emt 00:01:08]} Qxd6 {[%clk 00:45:01]} {[%emt 00:05:39]} 18. O-O {[%clk
00:23:52]} {[%emt 00:03:22]} Rxe3 {[%clk 00:43:42]} {[%emt 00:01:50]} 19. Bf3
{[%clk 00:20:56]} {[%emt 00:03:25]} Rae8 {[%clk 00:39:29]} {[%emt 00:04:43]} 20.
Nb3 {[%clk 00:19:37]} {[%emt 00:01:49]} Ng6 {[%clk 00:33:42]} {[%emt 00:06:18]}
21. Nd4 {[%clk 00:18:39]} {[%emt 00:01:28]} Nh4 {[%clk 00:31:34]} {[%emt
00:02:38]} 22. Nf5 {[%clk 00:14:15]} {[%emt 00:04:53]} Nxf5 {[%clk 00:22:37]}
{[%emt 00:09:28]} 23. Qxf5 {[%clk 00:14:35]} {[%emt 00:00:10]} Qc5 {[%clk
00:17:13]} {[%emt 00:05:54]} 24. Kh1 {[%clk 00:14:18]} {[%emt 00:00:46]} d4
{[%clk 00:16:54]} {[%emt 00:00:50]} 25. Qf4 {[%clk 00:09:39]} {[%emt 00:05:08]}
Rd3 {[%clk 00:03:28]} {[%emt 00:13:57]} 26. Rfd1 {[%clk 00:07:52]} {[%emt
00:02:17]} Rxd1+ {[%clk 00:02:06]} {[%emt 00:01:53]} 27. Rxd1 {[%clk 00:08:04]}
{[%emt 00:00:19]} d3 {[%clk 00:01:55]} {[%emt 00:00:39]} 28. Qd4 {[%clk
00:06:15]} {[%emt 00:02:19]} Qc2 {[%clk 00:01:40]} {[%emt 00:00:46]} 29. h3
{[%clk 00:06:06]} {[%emt 00:00:38]} h6 {[%clk 00:00:49]} {[%emt 00:01:21]} 30.
Rxd3 {[%clk 00:02:45]} {[%emt 00:03:51]} Re1+ {[%clk 00:00:52]} {[%emt
00:00:28]} 31. Kh2 {[%clk 00:03:03]} {[%emt 00:00:12]} Rb1 {[%clk 00:00:36]}
{[%emt 00:00:46]} 32. Qd8+ {[%clk 00:00:52]} {[%emt 00:02:40]} Kh7 {[%clk
00:01:02]} {[%emt 00:00:04]} 33. Bxf6 {[%clk 00:01:07]} {[%emt 00:00:15]} gxf6
{[%clk 00:00:46]} {[%emt 00:00:46]} 34. Be4+ {[%clk 00:01:30]} {[%emt
00:00:07]} 1-0

[Event "Kvibergspelen 2022"]
[Site "Kviberg Park Hotel & Conference, Krutvagen 2, Gothenburg, Sweden"]
[Date "2022.10.01"]
[Round "5.16"]
[White "Tabaa, Ghayth"]
[Black "Kjartansson, Matthias Bjorgvin"]
[Result "1-0"]
[TimeControl "15 minutes + 5 seconds per move from move one (Round 1 - 4) / 90 minutes + 30 seconds per move from move one (Round 5 - 8)"]
[WhiteFideId "7603819"]
[BlackFideId "2319225"]
[WhiteElo "2066"]
[BlackElo "1494"]

1. e4 {[%clk 01:30:37]} {[%emt 00:00:22]} c5 {[%clk 01:30:33]} {[%emt
00:00:22]} 2. Nf3 {[%clk 01:29:59]} {[%emt 00:01:14]} d6 {[%clk 01:30:32]}
{[%emt 00:00:30]} 3. g3 {[%clk 01:29:12]} {[%emt 00:01:17]} Nc6 {[%clk
01:29:12]} {[%emt 00:01:49]} 4. Bg2 {[%clk 01:29:13]} {[%emt 00:00:29]} Nf6
{[%clk 01:29:34]} {[%emt 00:00:08]} 5. d3 {[%clk 01:29:35]} {[%emt 00:00:09]}
g6 {[%clk 01:29:22]} {[%emt 00:00:42]} 6. O-O {[%clk 01:29:52]} {[%emt
00:00:13]} Bg7 {[%clk 01:26:34]} {[%emt 00:03:18]} 7. Re1 {[%clk 01:29:01]}
{[%emt 00:01:21]} O-O {[%clk 01:25:54]} {[%emt 00:01:09]} 8. c3 {[%clk
01:29:06]} {[%emt 00:00:26]} Nd7 {[%clk 01:17:12]} {[%emt 00:09:11]} 9. Be3
{[%clk 01:21:52]} {[%emt 00:07:44]} Nb6 {[%clk 01:12:48]} {[%emt 00:04:54]} 10.
a4 {[%clk 01:04:49]} {[%emt 00:17:33]} a5 {[%clk 01:08:35]} {[%emt 00:04:42]}
11. Na3 {[%clk 01:03:41]} {[%emt 00:01:39]} Bd7 {[%clk 01:08:30]} {[%emt
00:00:34]} 12. Rc1 {[%clk 00:57:00]} {[%emt 00:07:10]} Rc8 {[%clk 01:07:05]}
{[%emt 00:01:55]} 13. b3 {[%clk 00:52:36]} {[%emt 00:04:55]} f5 {[%clk
00:59:07]} {[%emt 00:08:28]} 14. Nb5 {[%clk 00:41:30]} {[%emt 00:11:37]} fxe4
{[%clk 00:51:38]} {[%emt 00:07:59]} 15. dxe4 {[%clk 00:41:19]} {[%emt
00:00:41]} Qe8 {[%clk 00:49:12]} {[%emt 00:02:56]} 16. e5 {[%clk 00:29:46]}
{[%emt 00:12:03]} Bxe5 {[%clk 00:41:23]} {[%emt 00:08:19]} 17. Nxe5 {[%clk
00:23:05]} {[%emt 00:07:12]} Nxe5 {[%clk 00:41:46]} {[%emt 00:00:07]} 18. Bf4
{[%clk 00:11:56]} {[%emt 00:11:38]} Qf7 {[%clk 00:25:20]} {[%emt 00:16:56]} 19.
Nxd6 {[%clk 00:06:27]} {[%emt 00:06:00]} exd6 {[%clk 00:25:19]} {[%emt
00:00:30]} 20. Qxd6 {[%clk 00:06:26]} {[%emt 00:00:31]} Nc6 {[%clk 00:25:02]}
{[%emt 00:00:49]} 21. Qxc5 {[%clk 00:05:46]} {[%emt 00:01:09]} Qxb3 {[%clk
00:16:06]} {[%emt 00:09:26]} 22. Rb1 {[%clk 00:06:10]} {[%emt 00:00:06]} Qxa4
{[%clk 00:09:44]} {[%emt 00:06:52]} 23. Rxb6 {[%clk 00:05:31]} {[%emt
00:01:09]} Rf5 {[%clk 00:09:25]} {[%emt 00:00:47]} 24. Bd5+ {[%clk 00:04:02]}
{[%emt 00:02:00]} Kg7 {[%clk 00:09:35]} {[%emt 00:00:19]} 25. Re7+ {[%clk
00:03:30]} {[%emt 00:01:03]} Kh8 {[%clk 00:09:01]} {[%emt 00:01:04]} 26. Rxd7
{[%clk 00:01:22]} {[%emt 00:02:38]} Qd1+ {[%clk 00:07:59]} {[%emt 00:01:32]} 27.
Kg2 {[%clk 00:01:47]} {[%emt 00:00:04]} Re8 {[%clk 00:07:53]} {[%emt 00:00:35]}
28. Rbxb7 {[%clk 00:00:54]} {[%emt 00:01:23]} Re7 {[%clk 00:05:24]} {[%emt
00:02:59]} 29. Rxe7 {[%clk 00:00:45]} {[%emt 00:00:40]} Nxe7 {[%clk 00:05:31]}
{[%emt 00:00:22]} 30. Rb8+ {[%clk 00:00:50]} {[%emt 00:00:25]} 1-0

[Event "Kvibergspelen 2022"]
[Site "Kviberg Park Hotel & Conference, Krutvagen 2, Gothenburg, Sweden"]
[Date "2022.10.01"]
[Round "5.18"]
[White "Ottgard, Andreas"]
[Black "Lindahl, Jonas"]
[Result "0-1"]
[TimeControl "15 minutes + 5 seconds per move from move one (Round 1 - 4) / 90 minutes + 30 seconds per move from move one (Round 5 - 8)"]
[WhiteFideId "1730592"]
[BlackFideId "1710060"]
[WhiteElo "1880"]
[BlackElo "2165"]

1. c4 {[%clk 01:30:54]} {[%emt 00:00:05]} g6 {[%clk 01:30:53]} {[%emt
00:00:08]} 2. g3 {[%clk 01:31:04]} {[%emt 00:00:20]} Bg7 {[%clk 01:31:16]}
{[%emt 00:00:07]} 3. Bg2 {[%clk 01:31:25]} {[%emt 00:00:07]} e5 {[%clk
01:31:38]} {[%emt 00:00:09]} 4. Nc3 {[%clk 01:31:17]} {[%emt 00:00:37]} Ne7
{[%clk 01:31:59]} {[%emt 00:00:10]} 5. Nf3 {[%clk 01:23:26]} {[%emt 00:08:22]}
O-O {[%clk 01:30:14]} {[%emt 00:02:16]} 6. O-O {[%clk 01:23:30]} {[%emt
00:00:25]} d5 {[%clk 01:28:26]} {[%emt 00:02:18]} 7. cxd5 {[%clk 01:23:21]}
{[%emt 00:00:38]} Nxd5 {[%emt 00:00:12]} 8. d3 {[%clk 01:16:57]} {[%emt
00:06:51]} Nxc3 {[%clk 01:20:56]} {[%emt 00:08:22]} 9. bxc3 {[%clk 01:17:19]}
{[%emt 00:00:07]} e4 {[%clk 01:21:07]} {[%emt 00:00:19]} 10. dxe4 {[%clk
01:17:33]} {[%emt 00:00:16]} Bxc3 {[%clk 01:15:56]} {[%emt 00:05:42]} 11. Rb1
{[%clk 01:17:55]} {[%emt 00:00:07]} Qxd1 {[%clk 01:12:26]} {[%emt 00:04:01]} 12.
Rxd1 {[%clk 01:18:15]} {[%emt 00:00:09]} Nc6 {[%clk 01:12:30]} {[%emt
00:00:27]} 13. Bf4 {[%clk 01:14:42]} {[%emt 00:04:02]} Ba5 {[%clk 01:12:05]}
{[%emt 00:00:56]} 14. Ne5 {[%clk 01:04:19]} {[%emt 00:10:53]} Nxe5 {[%clk
01:10:01]} {[%emt 00:02:34]} 15. Bxe5 {[%clk 01:04:38]} {[%emt 00:00:10]} Bb6
{[%clk 01:06:35]} {[%emt 00:03:56]} 16. Rd2 {[%clk 00:57:50]} {[%emt 00:07:17]}
f6 {[%clk 00:56:08]} {[%emt 00:10:58]} 17. Bc3 {[%clk 00:54:01]} {[%emt
00:04:19]} Be6 {[%clk 00:54:58]} {[%emt 00:01:40]} 18. e3 {[%clk 00:49:39]}
{[%emt 00:04:51]} Rab8 {[%clk 00:50:25]} {[%emt 00:05:04]} 19. e5 {[%clk
00:40:39]} {[%emt 00:09:28]} f5 {[%emt 00:06:42]} 20. a4 {[%clk 00:32:45]}
{[%emt 00:07:05]} a5 {[%clk 00:41:17]} {[%emt 00:04:47]} 21. Rb5 {[%clk
00:29:16]} {[%emt 00:03:59]} Rfd8 {[%clk 00:40:13]} {[%emt 00:01:34]} 22. Rxd8+
{[%clk 00:19:40]} {[%emt 00:10:06]} Rxd8 {[%clk 00:40:28]} {[%emt 00:00:15]} 23.
Bxb7 {[%clk 00:18:57]} {[%emt 00:01:13]} Rd1+ {[%clk 00:39:54]} {[%emt
00:01:04]} 24. Kg2 {[%clk 00:19:11]} {[%emt 00:00:15]} Bc4 {[%clk 00:39:44]}
{[%emt 00:00:40]} 25. Rb2 {[%clk 00:16:12]} {[%emt 00:03:30]} Rd3 {[%clk
00:33:34]} {[%emt 00:06:39]} 26. Bd4 {[%clk 00:12:52]} {[%emt 00:03:49]} Bxd4
{[%clk 00:31:06]} {[%emt 00:02:59]} 27. exd4 {[%clk 00:13:14]} {[%emt
00:00:08]} Rxd4 {[%clk 00:31:32]} {[%emt 00:00:05]} 28. f4 {[%clk 00:09:21]}
{[%emt 00:04:22]} Be6 {[%clk 00:22:51]} {[%emt 00:09:11]} 29. Rc2 {[%clk
00:06:32]} {[%emt 00:03:18]} Rb4 {[%clk 00:21:33]} {[%emt 00:01:48]} 30. Rxc7
{[%clk 00:06:41]} {[%emt 00:00:22]} Rxb7 {[%clk 00:21:51]} {[%emt 00:00:12]}
0-1